[Event "Reykjavik Open 2025"]
[Site "Reykjavik"]
[Date "2025.04.12"]
[Round "5.13"]
[White "Akesson, Ralf"]
[Black "Zierk, Steven"]
[Result "1/2-1/2"]
[Annotator "TA"]
[ECO "E04"]
[WhiteElo "2361"]
[BlackElo "2501"]
[PlyCount "145"]
[EventDate "2025.04.09"]
[EventType "swiss"]
[EventCountry "ISL"]
[SourceTitle "playchess.com"]
[Source "ChessBase"]
[SourceQuality "1"]
[TimeControl "40/5400+30:1800+30"]

{[%evp 15,145,33,39,45,46,43,53,46,38,54,26,0,13,0,-5,-10,20,19,29,31,24,28,58,54,92,94,75,64,56,53,57,56,91,0,0,-8,0,0,0,0,0,0,0,0,7,0,0,0,22,17,19,14,21,-25,-33,-154,-151,-162,-160,-172,-178,-217,-210,-210,-188,-176,-97,-221,-227,-234,-234,-219,-220,-272,-275,-269,-270,-250,0,-203,-196,-248,-237,-230,-136,-133,-99,-143,-8,-8,-8,-8,-8,-8,0,0,0,-13,0,0,0,0,203,202,243,243,235,228,791,783,778,767,5210,1772,5021,0,0,0,0,0,0,0,0,0,0,0,0,0,0,0,0,0]} 1. Nf3 {[%emt 0:01:17]} d5 {[%emt 0:00:09]} 2. d4 {[%emt 0:00:17]} Nf6 {[%emt 0:00:08]} 3. c4 {[%emt 0:00:10]} e6 {[%emt 0:00:14]} 4. g3 {[%emt 0:01:12]} dxc4 {[%emt 0:01:24]} 5. Bg2 {[%emt 0:00:19]} a6 {[%emt 0:00:06]} 6. O-O {[%emt 0:02:23]} Nc6 {[%emt 0:00:06]} 7. e3 {[%emt 0:04:07]} Bd7 {[%emt 0:04:56]} 8. Qe2 {[%emt 0:02:59]} b5 {[%emt 0:01:41]} 9. b3 {[%emt 0:01:17] E04: Open Catalan: 5 Nf3.} cxb3 {[%emt 0:00:52]} 10. axb3 {[%emt 0:00:10]} Bd6 {[%emt 0:05:42]} 11. Bb2 {[%emt 0:00:44][%mdl 1024] White is slightly better. White has compensation.} O-O {[%emt 0:01:27]} 12. Rc1 {[%emt 0:08:06] White sacrificed a pawn} Nb4 {[%emt 0:04:49]} 13. Ne1 $146 {[%emt 0:10:05]} (13. Ne5 Rc8 14. Na3 c5 15. dxc5 Rxc5 16. Rxc5 Bxc5 17. Nc2 a5 18. Rd1 Qc7 19. Nxd7 Nxd7 {1-0 Duda,J (2731)-Mamedyarov,S (2741) Meltwater Tour Final rapid 2022 (2.2)}) 13... Ra7 {[%emt 0:08:18]} 14. e4 {[%emt 0:10:54]} Be7 {[%emt 0:01:27]} 15. Nc3 {[%emt 0:01:14]} Bc6 {[%emt 0:07:04]} 16. Na2 {[%emt 0:05:04]} Nxa2 {[%emt 0:03:25]} 17. Rxa2 {[%emt 0:02:55]} Bb7 {[%emt 0:03:28]} 18. Nd3 {[%emt 0:01:15]} Nd7 {[%emt 0:01:54]} 19. Bc3 {[%emt 0:11:39]} Qb8 {[%emt 0:21:45]} 20. d5 {[%emt 0:05:00]} exd5 {[%emt 0:04:40] [#]} 21. Bxg7 $1 {[%emt 0:00:50]} Kxg7 {[%emt 0:00:25]} 22. Qg4+ {[%emt 0:00:29]} (22. exd5 Qd8 $11 (22... Bg5 23. f4 $14)) 22... Kh8 {[%emt 0:00:11]} 23. Qxd7 {[%emt 0:00:20]} Bg5 {[%emt 0:04:15]} 24. Rxc7 {[%emt 0:05:29] White has more active pieces.} (24. f4 $16 dxe4 25. Ne5 (25. Rxc7 $2 Bd8 $19) (25. fxg5 exd3 26. Rxc7 Bxg2 $18)) 24... Bc6 $11 {[%emt 0:02:45]} 25. Qxc6 {[%emt 0:04:51]} (25. Qf5 $5 Qxc7 (25... Rxc7 26. exd5 Ba8 27. Qxg5 $14) 26. exd5 $11 (26. Qxg5 Qd8 $17)) 25... Qxc7 {[%emt 0:02:41]} 26. Qxd5 {[%emt 0:04:09]} Qd8 {[%emt 0:01:39]} 27. Ne5 {[%emt 0:06:00] Wards off Rd7} Qxd5 {[%emt 0:03:47]} 28. exd5 {[%emt 0:00:06][%cal Be4d5,Bd5d6,Bd6d7][%mdl 32]} Re8 {[%emt 0:07:57]} 29. f4 {[%emt 0:00:22][%cal Oe5c6]} Bf6 $132 {[%emt 0:00:45][%mdl 2048] Black is fighting back} 30. Nc6 {[%emt 0:00:27]} Raa8 {[%emt 0:01:13][%cal Oa6a5]} (30... Re1+ $2 31. Kf2 Re8 32. Nxa7 $18) 31. d6 {[%emt 0:00:59]} Re1+ {[%emt 0:01:42]} 32. Kf2 {[%emt 0:00:19]} Rd1 {[%emt 0:00:29] [#]} 33. d7 {[%emt 0:03:33]} Kg7 {[%emt 0:01:46]} (33... Rd6 {simplifies} 34. Rc2 Kg7 35. Ne7 Bxe7 36. Bxa8 Rxd7 37. Ke3 Bd8) 34. Bh3 {[%emt 0:02:10]} (34. Bf3 $142 Rxd7 35. Ne5 Bxe5 36. Bxa8 Bd4+ 37. Kg2) 34... Rd6 {[%emt 0:00:59]} 35. Na5 {[%emt 0:02:17]} (35. Bf5 $15) 35... Ra7 $17 {[%emt 0:01:08]} 36. Rc2 {[%emt 0:00:46]} Bd8 $1 {[%emt 0:00:27]} 37. b4 {[%emt 0:01:13]} (37. Nc6 Rc7 38. Bg2 Rcxd7 39. Nxd8 Rd2+ (39... Rxd8 $2 40. Kf3 $19) 40. Rxd2 Rxd2+ 41. Kf3 Rxd8) 37... Rc7 {[%emt 0:00:40]} 38. Re2 {[%emt 0:01:40]} Rc1 {[%emt 0:01:32]} 39. Bf5 {[%emt 0:02:20]} Kf6 {[%emt 0:01:24]} 40. g4 {[%emt 0:00:30]} (40. Nb7 Bb6+ 41. Kg2 Rd5) 40... Rc3 {[%emt 0:00:36]} ({Black should try} 40... Bb6+ $19 41. Kg3 Rg1+ 42. Rg2 Rxg2+ 43. Kxg2 Bxa5 44. Bxh7 Bxb4) 41. Nb7 {[%emt 0:04:45]} (41. Bxh7 $2 Bb6+ (41... Rxd7 $2 42. Kg2 $19) 42. Kg2 Rxd7 $19) (41. Ke1 $17 {might work better.}) 41... Bb6+ $19 {[%emt 0:00:21]} 42. Kg2 {[%emt 0:00:22]} Rd1 {[%emt 0:03:57][%csl Gb6][%cal Rd1g1]} 43. h3 {[%emt 0:00:35] [#]} h5 $1 {[%emt 0:01:58][%mdl 512]} 44. Ra2 {[%emt 0:11:41]} (44. Nc5 Bxc5) 44... h4 {[%emt 0:04:05]} 45. Nc5 {[%emt 0:00:37]} Kg7 $1 {[%emt 0:12:33]} 46. Ne4 {[%emt 0:06:52]} Rg1+ {[%emt 0:04:22]} 47. Kh2 {[%emt 0:00:06]} Rcc1 {[%emt 0:00:46] ...Rh1+ would now be deadly.} 48. Nc5 {[%emt 0:02:07]} (48. g5 $142) 48... Rgd1 {[%emt 0:01:43]} 49. Kg2 {[%emt 0:00:35]} a5 {[%emt 0:02:31]} (49... Bxc5 $19 50. bxc5 Rxc5) 50. Nd3 $17 {[%emt 0:01:13] [#]} Rg1+ {[%emt 0:01:55]} 51. Kf3 {[%emt 0:00:07] [#]} Rc4 {[%emt 0:00:41]} (51... Rg3+ $1 $17 52. Ke4 Rc3 (52... Rc4+ 53. Kd5 $15)) 52. bxa5 $11 {[%emt 0:01:04]} Rg3+ {[%emt 0:00:05]} 53. Ke2 {[%emt 0:00:05]} Rg2+ {[%emt 0:00:09]} 54. Kf3 {[%emt 0:00:06]} Rg3+ {[%emt 0:00:04]} 55. Ke2 {[%emt 0:00:04] Dancing on a razor blade.} Rg2+ {[%emt 0:00:04]} 56. Kf3 {[%emt 0:00:05]} Rxa2 {[%emt 0:01:31]} 57. axb6 {[%emt 0:00:08]} Ra8 {[%emt 0:00:05]} 58. Ne5 {[%emt 0:01:13]} Rc3+ {[%emt 0:00:54]} ({Don't go for} 58... Ra3+ $2 59. Bd3 Rd4 60. b7 (60. Ke3 Raxd3+ 61. Nxd3 Rxd7 $17) 60... Raxd3+ (60... Rdxd3+ $2 {perishes.} 61. Ke4 $18) 61. Nxd3 Rxd3+ 62. Ke4 Rxd7 63. b8=Q $18 (63. b8=B $2 b4 $19)) (58... Rc5 $1 $11 {and Black is okay.}) 59. Ke4 $18 {[%emt 0:00:24]} f6 {[%emt 0:00:40]} 60. Kd4 {[%emt 0:03:25]} Rc1 {[%emt 0:01:02]} 61. Nd3 {[%emt 0:00:31]} Rc4+ $2 {[%emt 0:00:31]} (61... Rc6 62. Be4 (62. b7 Rb8 $18) 62... Rc4+ 63. Kd5 Kf8) 62. Kd5 {[%emt 0:00:10]} Kf8 {[%emt 0:00:49]} 63. b7 {[%emt 0:00:45]} (63. Nc5 Ke7 $11) 63... Rb8 {[%emt 0:00:46]} 64. Kd6 {[%emt 0:00:14]} b4 {[%emt 0:00:24]} 65. Kd5 $2 {[%emt 0:03:25]} (65. Nc5 $18 b3 66. Ne6+ (66. Nxb3 Rxf4 67. Na5 Kg7 $18) 66... Kg8 67. d8=Q+ (67. d8=R+ Rxd8+ 68. Nxd8 Rd4+ 69. Kc7 Rb4 $18) 67... Rxd8+ 68. Nxd8 Rd4+ 69. Kc7) 65... Rc7 $1 $11 {[%emt 0:00:29] The position is equal.} 66. Nxb4 {[%emt 0:00:06]} (66. Nc5 $5 Ke7 $8 67. g5 $11) 66... Rxd7+ $1 {[%emt 0:00:17]} 67. Bxd7 {[%emt 0:00:11] Intending Bc8 and mate.} Rxb7 {[%emt 0:00:03]} 68. Ke6 $1 {[%emt 0:00:38]} Rxb4 {[%emt 0:00:07]} 69. Kxf6 {[%emt 0:00:07]} Rd4 {[%emt 0:00:42]} 70. Bf5 {[%emt 0:00:15] Hoping for Kg5.} Rxf4 {[%emt 0:00:05]} 71. Kg5 {[%emt 0:00:08][%csl LRf4,LRh4]} Rf3 {[%emt 0:00:03]} 72. Kxh4 {[%emt 0:00:08]} Kg7 {[%emt 0:00:07]} 73. Bd7 {[%emt 0:00:27] Quite a comeback for White.   Weighted Error Value: White=0.15 (very precise) /Black=0.25 (precise)   Loses game:     	White=1     	Black=1      Mistake:       	White=5     	Black=4      Inaccurate:     	---       	Black=4      OK:         	White=21    	Black=29     Best:        	White=12    	Black=5      Strong:       	White=1     	Black=3} 1/2-1/2

[Event "Reykjavik Open 2025"]
[Site "Reykjavik"]
[Date "2025.04.12"]
[Round "5.14"]
[White "Draskovic, Luka"]
[Black "Papadiamandis, Elliot"]
[Result "1-0"]
[Annotator "ChessBase"]
[ECO "B51"]
[WhiteElo "2488"]
[BlackElo "2315"]
[PlyCount "65"]
[EventDate "2025.04.09"]
[EventType "swiss"]
[EventCountry "ISL"]
[SourceTitle "playchess.com"]
[Source "ChessBase"]
[SourceQuality "1"]
[TimeControl "40/5400+30:1800+30"]

1. e4 {[%emt 0:00:05]} c5 {[%emt 0:00:17]} 2. Nf3 {[%emt 0:00:24]} d6 {[%emt 0:00:28]} 3. Bb5+ {[%emt 0:00:18]} Nd7 {[%emt 0:00:13]} 4. O-O {[%emt 0:01:49]} a6 {[%emt 0:00:40]} 5. Be2 {[%emt 0:00:11]} Ngf6 {[%emt 0:01:11]} 6. d3 {[%emt 0:00:13]} g6 {[%emt 0:00:18]} 7. c4 {[%emt 0:00:38]} b5 {[%emt 0:09:12]} 8. cxb5 {[%emt 0:04:15]} axb5 {[%emt 0:01:36]} 9. d4 {[%emt 0:00:55]} Nxe4 {[%emt 0:32:41]} 10. Bxb5 {[%emt 0:00:43]} Bb7 {[%emt 0:08:21]} 11. dxc5 {[%emt 0:22:54]} Nexc5 {[%emt 0:02:06]} 12. b4 {[%emt 0:02:49]} Ne6 {[%emt 0:01:24]} 13. Bb2 {[%emt 0:03:22]} Bg7 {[%emt 0:00:06]} 14. Bxg7 {[%emt 0:01:13]} Nxg7 {[%emt 0:00:09]} 15. a4 {[%emt 0:02:09]} O-O {[%emt 0:02:29]} 16. Nc3 {[%emt 0:00:10]} Ne6 {[%emt 0:05:17]} 17. Re1 {[%emt 0:08:24]} Nf6 {[%emt 0:05:49]} 18. Nd4 {[%emt 0:02:50]} Nxd4 {[%emt 0:06:30]} 19. Qxd4 {[%emt 0:00:25]} e5 {[%emt 0:00:11]} 20. Qd2 {[%emt 0:01:02]} Qe7 {[%emt 0:02:12]} 21. a5 {[%emt 0:04:51]} Rac8 {[%emt 0:02:52]} 22. Bf1 {[%emt 0:01:33]} d5 {[%emt 0:00:13]} 23. Na4 {[%emt 0:02:29]} Ne4 {[%emt 0:01:28]} 24. Qb2 {[%emt 0:00:29]} d4 {[%emt 0:09:47]} 25. a6 {[%emt 0:00:40]} Bc6 {[%emt 0:00:12]} 26. b5 {[%emt 0:00:37]} Rb8 {[%emt 0:00:13]} 27. Qc2 {[%emt 0:02:34]} Bd5 {[%emt 0:00:15]} 28. Rxe4 {[%emt 0:00:15]} Rfc8 {[%emt 0:00:05]} 29. Qb1 {[%emt 0:00:39]} Bxe4 {[%emt 0:00:21]} 30. Qxe4 {[%emt 0:00:06]} f5 {[%emt 0:01:55]} 31. Qd5+ {[%emt 0:00:07]} Kg7 {[%emt 0:00:22]} 32. b6 {[%emt 0:00:09]} Rd8 {[%emt 0:00:04]} 33. a7 {[%emt 0:01:05]} 1-0

[Event "Reykjavik Open 2025"]
[Site "Reykjavik"]
[Date "2025.04.12"]
[Round "5.15"]
[White "Li, Guohao"]
[Black "Kilic, Eray"]
[Result "1/2-1/2"]
[Annotator "ChessBase"]
[ECO "E04"]
[WhiteElo "2356"]
[BlackElo "2473"]
[PlyCount "49"]
[EventDate "2025.04.09"]
[EventType "swiss"]
[EventCountry "ISL"]
[SourceTitle "playchess.com"]
[Source "ChessBase"]
[SourceQuality "1"]
[TimeControl "40/5400+30:1800+30"]

1. d4 {[%emt 0:01:10]} Nf6 {[%emt 0:00:07]} 2. c4 {[%emt 0:00:20]} e6 {[%emt 0:00:04]} 3. Nf3 {[%emt 0:00:17]} d5 {[%emt 0:00:04]} 4. g3 {[%emt 0:00:08]} dxc4 {[%emt 0:00:08]} 5. Bg2 {[%emt 0:00:13]} a6 {[%emt 0:00:04]} 6. O-O {[%emt 0:00:15]} Nc6 {[%emt 0:00:05]} 7. a4 {[%emt 0:00:14]} Rb8 {[%emt 0:03:13]} 8. a5 {[%emt 0:00:08]} Bb4 {[%emt 0:11:10]} 9. Ra4 {[%emt 0:01:39]} Be7 {[%emt 0:11:53]} 10. Qc2 {[%emt 0:00:50]} O-O {[%emt 0:01:02]} 11. Qxc4 {[%emt 0:01:25]} Bd7 {[%emt 0:00:49]} 12. Ra1 {[%emt 0:06:41]} Nb4 {[%emt 0:06:49]} 13. Nc3 {[%emt 0:00:48]} b5 {[%emt 0:03:23]} 14. axb6 {[%emt 0:01:09]} cxb6 {[%emt 0:00:04]} 15. Bg5 {[%emt 0:06:15]} b5 {[%emt 0:02:25]} 16. Qb3 {[%emt 0:00:09]} a5 {[%emt 0:00:14]} 17. Ne5 {[%emt 0:15:10]} Bc8 {[%emt 0:02:03]} 18. e3 {[%emt 0:01:58]} Bb7 {[%emt 0:02:41]} 19. Bxb7 {[%emt 0:09:52]} Rxb7 {[%emt 0:00:27]} 20. Rfc1 {[%emt 0:02:04]} a4 {[%emt 0:13:09]} 21. Qd1 {[%emt 0:00:39]} Nd7 {[%emt 0:01:30]} 22. Bxe7 {[%emt 0:08:32]} Qxe7 {[%emt 0:00:31]} 23. Nxd7 {[%emt 0:00:03]} Qxd7 {[%emt 0:00:09]} 24. b3 {[%emt 0:00:04]} axb3 {[%emt 0:04:09]} 25. Qxb3 {[%emt 0:00:09]} 1/2-1/2

[Event "Reykjavik Open 2025"]
[Site "Reykjavik"]
[Date "2025.04.12"]
[Round "5.16"]
[White "Migot, Tangi"]
[Black "Hjartarson, Johann"]
[Result "0-1"]
[Annotator "ChessBase"]
[ECO "C78"]
[WhiteElo "2347"]
[BlackElo "2461"]
[PlyCount "72"]
[EventDate "2025.04.09"]
[EventType "swiss"]
[EventCountry "ISL"]
[SourceTitle "playchess.com"]
[Source "ChessBase"]
[SourceQuality "1"]
[TimeControl "40/5400+30:1800+30"]

1. e4 {[%emt 0:01:14]} e5 {[%emt 0:00:43]} 2. Nf3 {[%emt 0:00:12]} Nc6 {[%emt 0:00:06]} 3. Bb5 {[%emt 0:01:17]} a6 {[%emt 0:00:08]} 4. Ba4 {[%emt 0:00:06]} Nf6 {[%emt 0:00:07]} 5. O-O {[%emt 0:00:10]} Bc5 {[%emt 0:00:51]} 6. c3 {[%emt 0:03:03]} O-O {[%emt 0:00:38]} 7. d4 {[%emt 0:02:36]} Ba7 {[%emt 0:00:08]} 8. Re1 {[%emt 0:10:41]} b5 {[%emt 0:00:28]} 9. Bc2 {[%emt 0:02:13]} d6 {[%emt 0:00:08]} 10. h3 {[%emt 0:08:18]} Bb7 {[%emt 0:01:38]} 11. a3 {[%emt 0:03:07]} h6 {[%emt 0:16:28]} 12. Be3 {[%emt 0:00:47]} Re8 {[%emt 0:00:43]} 13. Nbd2 {[%emt 0:01:24]} Qd7 {[%emt 0:19:34]} 14. Nf1 {[%emt 0:15:35]} exd4 {[%emt 0:03:51]} 15. cxd4 {[%emt 0:07:46]} Na5 {[%emt 0:01:18]} 16. e5 {[%emt 0:11:38]} dxe5 {[%emt 0:00:36]} 17. dxe5 {[%emt 0:00:10]} Qxd1 {[%emt 0:00:24]} 18. Bxd1 {[%emt 0:03:10]} Nd5 {[%emt 0:04:08]} 19. Bxa7 {[%emt 0:02:59]} Rxa7 {[%emt 0:00:05]} 20. b4 {[%emt 0:05:52]} Nc4 {[%emt 0:00:35]} 21. N1d2 {[%emt 0:00:08]} Nf4 {[%emt 0:05:05]} 22. Nxc4 {[%emt 0:02:49]} bxc4 {[%emt 0:00:36]} 23. Re3 {[%emt 0:00:44]} c5 {[%emt 0:08:34]} 24. bxc5 {[%emt 0:02:22]} Rc8 {[%emt 0:00:58]} 25. Bc2 {[%emt 0:07:26]} Rxc5 {[%emt 0:01:12]} 26. Rb1 {[%emt 0:00:38]} Kf8 {[%emt 0:03:07]} 27. Kf1 {[%emt 0:00:48]} a5 {[%emt 0:04:46]} 28. Ne1 {[%emt 0:04:09]} c3 {[%emt 0:02:41]} 29. f3 {[%emt 0:01:53]} g5 {[%emt 0:06:41]} 30. Kf2 {[%emt 0:00:27]} Ba6 {[%emt 0:01:29]} 31. g3 {[%emt 0:01:15]} Ne6 {[%emt 0:00:48]} 32. Re4 {[%emt 0:01:00]} Rd7 {[%emt 0:00:49]} 33. Rb6 {[%emt 0:00:26]} Rd2+ {[%emt 0:00:55]} 34. Kg1 {[%emt 0:00:04]} Bb5 {[%emt 0:03:11]} 35. Rd6 {[%emt 0:00:33]} Ke7 {[%emt 0:00:23]} 36. Re3 {[%emt 0:00:54]} Nd4 {[%emt 0:00:57]} 0-1

[Event "Reykjavik Open 2025"]
[Site "Reykjavik"]
[Date "2025.04.12"]
[Round "5.17"]
[White "Garifullina, Leya"]
[Black "Colas, Joshua"]
[Result "1-0"]
[Annotator "ChessBase"]
[ECO "B01"]
[WhiteElo "2459"]
[BlackElo "2275"]
[PlyCount "115"]
[EventDate "2025.04.09"]
[EventType "swiss"]
[EventCountry "ISL"]
[SourceTitle "playchess.com"]
[Source "ChessBase"]
[SourceQuality "1"]
[TimeControl "40/5400+30:1800+30"]

1. e4 {[%emt 0:00:03]} d5 {[%emt 0:05:40]} 2. exd5 {[%emt 0:00:10]} Qxd5 {[%emt 0:00:06]} 3. Nc3 {[%emt 0:00:05]} Qd6 {[%emt 0:00:24]} 4. d4 {[%emt 0:00:13]} Nf6 {[%emt 0:00:11]} 5. Nf3 {[%emt 0:00:06]} c6 {[%emt 0:01:02]} 6. g3 {[%emt 0:00:28]} Bg4 {[%emt 0:01:03]} 7. Bg2 {[%emt 0:00:55]} e6 {[%emt 0:03:25]} 8. O-O {[%emt 0:02:04]} Nbd7 {[%emt 0:03:05]} 9. h3 {[%emt 0:05:52]} Bh5 {[%emt 0:05:41]} 10. Ne2 {[%emt 0:01:22]} Qc7 {[%emt 0:02:40]} 11. Nf4 {[%emt 0:07:46]} Bg6 {[%emt 0:02:19]} 12. Nxg6 {[%emt 0:01:24]} hxg6 {[%emt 0:00:18]} 13. c4 {[%emt 0:00:43]} Bd6 {[%emt 0:01:58]} 14. Re1 {[%emt 0:02:20]} O-O {[%emt 0:01:15]} 15. Bd2 {[%emt 0:03:23]} Rfe8 {[%emt 0:06:29]} 16. Bc3 {[%emt 0:01:15]} Rad8 {[%emt 0:04:24]} 17. Qc2 {[%emt 0:03:28]} c5 {[%emt 0:03:09]} 18. dxc5 {[%emt 0:02:02]} Bxc5 {[%emt 0:00:31]} 19. b4 {[%emt 0:01:45]} Bf8 {[%emt 0:01:27]} 20. Nd2 {[%emt 0:06:27]} Nb6 {[%emt 0:06:16]} 21. Bf1 {[%emt 0:05:16]} Nh5 {[%emt 0:07:53]} 22. Rad1 {[%emt 0:06:43]} Qc6 {[%emt 0:04:26]} 23. a3 {[%emt 0:03:29]} Be7 {[%emt 0:02:48]} 24. Bg2 {[%emt 0:04:06]} Qc8 {[%emt 0:03:57]} 25. Bb2 {[%emt 0:02:52]} Bg5 {[%emt 0:05:11]} 26. c5 {[%emt 0:04:27]} Bxd2 {[%emt 0:00:37]} 27. Rxd2 {[%emt 0:00:04]} Rxd2 {[%emt 0:00:14]} 28. Qxd2 {[%emt 0:00:03]} Nc4 {[%emt 0:02:15]} 29. Qc3 {[%emt 0:00:16]} Nxb2 {[%emt 0:00:07]} 30. Qxb2 {[%emt 0:00:08]} Nf6 {[%emt 0:01:12]} 31. Qe5 {[%emt 0:01:58]} Rd8 {[%emt 0:01:34]} 32. Rc1 {[%emt 0:00:36]} Qd7 {[%emt 0:01:28]} 33. Bf3 {[%emt 0:01:54]} Nd5 {[%emt 0:02:05]} 34. Rd1 {[%emt 0:02:01]} b6 {[%emt 0:03:03]} 35. Rc1 {[%emt 0:04:54]} bxc5 {[%emt 0:01:17]} 36. Rxc5 {[%emt 0:01:22]} Rc8 {[%emt 0:10:22]} 37. Kg2 {[%emt 0:03:11]} Rxc5 {[%emt 0:01:17]} 38. bxc5 {[%emt 0:00:06]} Qc7 {[%emt 0:00:07]} 39. Qd4 {[%emt 0:03:55]} Qc6 {[%emt 0:00:48]} 40. h4 {[%emt 0:01:04]} Kf8 {[%emt 0:00:58]} 41. Kg1 {[%emt 0:32:37]} Kg8 {[%emt 0:31:33]} 42. Bxd5 {[%emt 0:02:17]} exd5 {[%emt 0:00:17]} 43. Qb4 {[%emt 0:00:38]} Kh7 {[%emt 0:01:09]} 44. a4 {[%emt 0:01:27]} Qf6 {[%emt 0:01:13]} 45. Qb3 {[%emt 0:06:07]} Qe5 {[%emt 0:00:00]} 46. c6 {[%emt 0:00:00]} d4 {[%emt 0:00:00]} 47. Qc4 {[%emt 0:00:00]} Qc7 {[%emt 0:00:00]} 48. Qxd4 {[%emt 0:00:00]} Qxc6 {[%emt 0:00:00]} 49. Qxa7 {[%emt 0:00:00]} f5 {[%emt 0:00:00]} 50. Qd4 {[%emt 0:00:00]} Qc1+ {[%emt 0:00:22]} 51. Kh2 {[%emt 0:00:00]} Qa3 {[%emt 0:00:44]} 52. Qf4 {[%emt 0:00:00]} Kh8 {[%emt 0:01:34]} 53. Kg2 {[%emt 0:00:00]} Kg8 {[%emt 0:01:21]} 54. Qc4+ {[%emt 0:00:00]} Kh7 {[%emt 0:00:44]} 55. Qb5 {[%emt 0:00:00]} Qe7 {[%emt 0:01:01]} 56. Qd5 {[%emt 0:00:00]} f4 {[%emt 0:00:42]} 57. gxf4 {[%emt 0:00:00]} Qxh4 {[%emt 0:00:13]} 58. Qg5 {[%emt 0:00:00]} 1-0

[Event "Reykjavik Open 2025"]
[Site "Reykjavik"]
[Date "2025.04.12"]
[Round "5.18"]
[White "Kjartansson, Gudmundur"]
[Black "Briem, Benedikt"]
[Result "1-0"]
[Annotator "ChessBase"]
[ECO "D36"]
[WhiteElo "2450"]
[BlackElo "2249"]
[PlyCount "93"]
[EventDate "2025.04.09"]
[EventType "swiss"]
[EventCountry "ISL"]
[SourceTitle "playchess.com"]
[Source "ChessBase"]
[SourceQuality "1"]
[TimeControl "40/5400+30:1800+30"]

1. c4 {[%emt 0:00:03]} e6 {[%emt 0:02:35]} 2. Nc3 {[%emt 0:00:09]} d5 {[%emt 0:00:25]} 3. d4 {[%emt 0:00:18]} Nf6 {[%emt 0:00:24]} 4. cxd5 {[%emt 0:00:18]} exd5 {[%emt 0:00:21]} 5. Bg5 {[%emt 0:00:11]} c6 {[%emt 0:00:36]} 6. e3 {[%emt 0:00:05]} Be7 {[%emt 0:00:47]} 7. Bd3 {[%emt 0:00:16]} h6 {[%emt 0:00:14]} 8. Bh4 {[%emt 0:00:14]} O-O {[%emt 0:00:21]} 9. Qc2 {[%emt 0:01:08]} Ne8 {[%emt 0:00:39]} 10. Bg3 {[%emt 0:00:20]} Nd6 {[%emt 0:02:11]} 11. h3 {[%emt 0:01:39]} Re8 {[%emt 0:01:20]} 12. Nf3 {[%emt 0:02:17]} Bf8 {[%emt 0:01:02]} 13. O-O {[%emt 0:00:36]} a5 {[%emt 0:05:05]} 14. Ne5 {[%emt 0:05:04]} Nd7 {[%emt 0:02:35]} 15. Rad1 {[%emt 0:00:25]} Nf6 {[%emt 0:09:10]} 16. f3 {[%emt 0:06:33]} Be6 {[%emt 0:06:25]} 17. b3 {[%emt 0:16:28]} Nd7 {[%emt 0:09:52]} 18. e4 {[%emt 0:05:06]} Nb6 {[%emt 0:05:47]} 19. Ne2 {[%emt 0:08:44]} Nd7 {[%emt 0:17:47]} 20. Nxd7 {[%emt 0:10:48]} Bxd7 {[%emt 0:10:25]} 21. e5 {[%emt 0:01:37]} Nb5 {[%emt 0:01:06]} 22. f4 {[%emt 0:05:21]} c5 {[%emt 0:04:43]} 23. dxc5 {[%emt 0:05:33]} Rc8 {[%emt 0:00:33]} 24. Bf2 {[%emt 0:01:27]} b6 {[%emt 0:02:08]} 25. Bh7+ {[%emt 0:00:47]} Kh8 {[%emt 0:00:21]} 26. Rxd5 {[%emt 0:00:14]} Qc7 {[%emt 0:03:11]} 27. Rxd7 {[%emt 0:08:44]} Qxd7 {[%emt 0:00:07]} 28. Bf5 {[%emt 0:00:03]} Qc6 {[%emt 0:01:35]} 29. Bxc8 {[%emt 0:00:31]} Rxc8 {[%emt 0:00:29]} 30. Rc1 {[%emt 0:06:15]} bxc5 {[%emt 0:03:13]} 31. a4 {[%emt 0:01:37]} Na3 {[%emt 0:01:54]} 32. Qd2 {[%emt 0:04:14]} Qe4 {[%emt 0:05:42]} 33. Qd7 {[%emt 0:04:13]} Rb8 {[%emt 0:00:06]} 34. Qc7 {[%emt 0:00:18]} Ra8 {[%emt 0:03:20]} 35. Kf1 {[%emt 0:02:02]} Qd5 {[%emt 0:00:45]} 36. Bxc5 {[%emt 0:00:49]} Bxc5 {[%emt 0:00:35]} 37. Qxc5 {[%emt 0:02:20]} Qxb3 {[%emt 0:00:16]} 38. Qc3 {[%emt 0:00:11]} Qb4 {[%emt 0:00:43]} 39. Qd3 {[%emt 0:01:34]} Rb8 {[%emt 0:00:35]} 40. Rc7 {[%emt 0:01:17]} Kg8 {[%emt 0:00:33]} 41. Qd7 {[%emt 0:09:32]} Qb1+ {[%emt 0:09:43]} 42. Kf2 {[%emt 0:00:39]} Qb6+ {[%emt 0:00:59]} 43. Kg3 {[%emt 0:02:06]} Qe3+ {[%emt 0:00:42]} 44. Kh2 {[%emt 0:00:18]} Rf8 {[%emt 0:00:21]} 45. Qg4 {[%emt 0:05:41]} Nb1 {[%emt 0:02:40]} 46. Ng3 {[%emt 0:00:32]} Nd2 {[%emt 0:02:52]} 47. Nf5 {[%emt 0:03:03]} 1-0

[Event "Reykjavik Open 2025"]
[Site "Reykjavik"]
[Date "2025.04.12"]
[Round "5.19"]
[White "Schouten, Mathias Lind"]
[Black "Larkin, Vladyslav"]
[Result "0-1"]
[Annotator "ChessBase"]
[ECO "B01"]
[WhiteElo "2279"]
[BlackElo "2449"]
[PlyCount "60"]
[EventDate "2025.04.09"]
[EventType "swiss"]
[EventCountry "ISL"]
[SourceTitle "playchess.com"]
[Source "ChessBase"]
[SourceQuality "1"]
[TimeControl "40/5400+30:1800+30"]

1. e4 {[%emt 0:00:05]} d5 {[%emt 0:01:51]} 2. exd5 {[%emt 0:00:37]} Qxd5 {[%emt 0:00:04]} 3. Nc3 {[%emt 0:00:22]} Qa5 {[%emt 0:00:10]} 4. d4 {[%emt 0:00:44]} c6 {[%emt 0:00:05]} 5. Nf3 {[%emt 0:04:15]} Bf5 {[%emt 0:00:10]} 6. Be2 {[%emt 0:01:15]} Nf6 {[%emt 0:05:04]} 7. O-O {[%emt 0:00:15]} h6 {[%emt 0:04:08]} 8. Ne5 {[%emt 0:19:05]} e6 {[%emt 0:03:47]} 9. Re1 {[%emt 0:03:10]} Be7 {[%emt 0:02:06]} 10. Bf4 {[%emt 0:00:28]} O-O {[%emt 0:01:53]} 11. Qd2 {[%emt 0:01:18]} Nbd7 {[%emt 0:04:56]} 12. Nc4 {[%emt 0:10:07]} Qd8 {[%emt 0:00:05]} 13. Nd6 {[%emt 0:28:34]} Bxd6 {[%emt 0:00:22]} 14. Bxd6 {[%emt 0:00:09]} Re8 {[%emt 0:00:02]} 15. Bd3 {[%emt 0:01:37]} Bxd3 {[%emt 0:01:06]} 16. Qxd3 {[%emt 0:00:04]} Qb6 {[%emt 0:00:40]} 17. b4 {[%emt 0:06:21]} Rad8 {[%emt 0:10:36]} 18. Na4 {[%emt 0:01:14]} Qb5 {[%emt 0:01:10]} 19. Qxb5 {[%emt 0:00:04]} cxb5 {[%emt 0:00:06]} 20. Nc5 {[%emt 0:00:03]} b6 {[%emt 0:01:18]} 21. Nd3 {[%emt 0:01:34]} Rc8 {[%emt 0:00:34]} 22. a4 {[%emt 0:02:30]} bxa4 {[%emt 0:00:50]} 23. Rxa4 {[%emt 0:00:04]} Rxc2 {[%emt 0:00:03]} 24. Rxa7 {[%emt 0:00:34]} Rec8 {[%emt 0:00:20]} 25. Kf1 {[%emt 0:10:08]} Rd2 {[%emt 0:02:02]} 26. Re3 {[%emt 0:01:30]} Nd5 {[%emt 0:03:45]} 27. Ke1 {[%emt 0:00:41]} Rcc2 {[%emt 0:01:08]} 28. Rg3 {[%emt 0:00:06]} Nc3 {[%emt 0:01:12]} 29. Ra1 {[%emt 0:00:04]} Ne4 {[%emt 0:00:29]} 30. Bf4 {[%emt 0:00:26]} Re2+ {[%emt 0:00:17]} 0-1